[Event "Late-Titled-Tuesday-Blitz-September-12-2023"]
[Site "Chess.com"]
[Date "2023.09.12"]
[Round "2"]
[White "Ready4abattle"]
[Black "LoaySameer"]
[Result "1/2-1/2"]
[WhiteElo "2311"]
[BlackElo "2513"]
[TimeControl "180+1"]
[EndTime "14:18:15 PDT"]
[Termination "Game drawn by repetition"]

1. e4 {[%clk 0:03:00.9]} 1... c5 {[%clk 0:02:56.7]} 2. Nf3 {[%clk 0:03:00.7]}
2... Nc6 {[%clk 0:02:57.2]} 3. d4 {[%clk 0:03:00.7]} 3... cxd4 {[%clk
0:02:58.1]} 4. Nxd4 {[%clk 0:03:00.9]} 4... Nf6 {[%clk 0:02:58.8]} 5. Nc3 {[%clk
0:03:00.3]} 5... e5 {[%clk 0:02:59.3]} 6. Ndb5 {[%clk 0:02:59.3]} 6... d6 {[%clk
0:02:59.5]} 7. Bg5 {[%clk 0:02:53.4]} 7... a6 {[%clk 0:02:59.4]} 8. Na3 {[%clk
0:02:53.3]} 8... b5 {[%clk 0:02:59.4]} 9. Nd5 {[%clk 0:02:53]} 9... Be7 {[%clk
0:02:59.9]} 10. Bxf6 {[%clk 0:02:53.4]} 10... Bxf6 {[%clk 0:03:00.8]} 11. c4
{[%clk 0:02:53.8]} 11... b4 {[%clk 0:02:59.6]} 12. Nc2 {[%clk 0:02:53.4]} 12...
a5 {[%clk 0:03:00.1]} 13. Qf3 {[%clk 0:02:52.1]} 13... Bg5 {[%clk 0:02:55.3]}
14. h4 {[%clk 0:02:51.7]} 14... Bh6 {[%clk 0:02:48.8]} 15. g4 {[%clk 0:02:51.3]}
15... Bf4 {[%clk 0:02:48.8]} 16. Rd1 {[%clk 0:02:43.7]} 16... Be6 {[%clk
0:02:47.4]} 17. g5 {[%clk 0:02:33.2]} 17... O-O {[%clk 0:02:46.1]} 18. Nxf4
{[%clk 0:02:29.8]} 18... exf4 {[%clk 0:02:45.3]} 19. Qxf4 {[%clk 0:02:28.9]}
19... Ne5 {[%clk 0:02:41.7]} 20. c5 {[%clk 0:02:14.9]} 20... Qc8 {[%clk
0:01:35.3]} 21. Rxd6 {[%clk 0:01:41.9]} 21... Qxc5 {[%clk 0:01:32.7]} 22. Rd2
{[%clk 0:01:42.5]} 22... Bxa2 {[%clk 0:01:29.1]} 23. Be2 {[%clk 0:01:41.4]}
23... Nc4 {[%clk 0:01:04.2]} 24. Rd5 {[%clk 0:01:33.6]} 24... Qe7 {[%clk
0:00:57.2]} 25. Nd4 {[%clk 0:01:21]} 25... Nxb2 {[%clk 0:00:26.2]} 26. Nf5
{[%clk 0:01:18.4]} 26... Qe8 {[%clk 0:00:22.6]} 27. Rd2 {[%clk 0:01:13.1]} 27...
a4 {[%clk 0:00:19.8]} 28. Rxb2 {[%clk 0:01:12.5]} 28... b3 {[%clk 0:00:20.4]}
29. O-O {[%clk 0:01:07.6]} 29... a3 {[%clk 0:00:18.9]} 30. Rxa2 {[%clk
0:01:07.6]} 30... bxa2 {[%clk 0:00:19]} 31. Bc4 {[%clk 0:01:04.9]} 31... Qb8
{[%clk 0:00:19.1]} 32. Qxb8 {[%clk 0:00:33.1]} 32... Rfxb8 {[%clk 0:00:20]} 33.
Bxa2 {[%clk 0:00:33.5]} 33... Rb2 {[%clk 0:00:19.7]} 34. Bd5 {[%clk 0:00:33.3]}
34... a2 {[%clk 0:00:20.2]} 35. Bxa2 {[%clk 0:00:17.7]} 35... Rbxa2 {[%clk
0:00:20.1]} 36. Rd1 {[%clk 0:00:17.1]} 36... Ra1 {[%clk 0:00:20.4]} 37. Rxa1
{[%clk 0:00:16.6]} 37... Rxa1+ {[%clk 0:00:21.3]} 38. Kg2 {[%clk 0:00:17.2]}
38... g6 {[%clk 0:00:20.3]} 39. Ng3 {[%clk 0:00:16.1]} 39... Kg7 {[%clk
0:00:20.5]} 40. f4 {[%clk 0:00:16.3]} 40... Ra3 {[%clk 0:00:20.3]} 41. Kh3
{[%clk 0:00:16.2]} 41... f6 {[%clk 0:00:20.8]} 42. Kg4 {[%clk 0:00:14.4]} 42...
Kf7 {[%clk 0:00:20.3]} 43. f5 {[%clk 0:00:13.1]} 43... Kg7 {[%clk 0:00:18.2]}
44. fxg6 {[%clk 0:00:10.5]} 44... hxg6 {[%clk 0:00:19.1]} 45. gxf6+ {[%clk
0:00:10.2]} 45... Kxf6 {[%clk 0:00:20]} 46. Ne2 {[%clk 0:00:08.8]} 46... Re3
{[%clk 0:00:19.5]} 47. Ng3 {[%clk 0:00:08.9]} 47... Kf7 {[%clk 0:00:18.7]} 48.
Kf4 {[%clk 0:00:09.2]} 48... Ra3 {[%clk 0:00:18]} 49. h5 {[%clk 0:00:09.8]}
49... g5+ {[%clk 0:00:14.8]} 50. Kg4 {[%clk 0:00:10.1]} 50... Kf6 {[%clk
0:00:15.3]} 51. Nf5 {[%clk 0:00:06.9]} 51... Ra4 {[%clk 0:00:15.3]} 52. Ng3
{[%clk 0:00:07.2]} 52... Rb4 {[%clk 0:00:15.5]} 53. h6 {[%clk 0:00:06.8]} 53...
Kg6 {[%clk 0:00:14.2]} 54. h7 {[%clk 0:00:07]} 54... Rb8 {[%clk 0:00:14.6]} 55.
Nf5 {[%clk 0:00:04.3]} 55... Rh8 {[%clk 0:00:14.9]} 56. Ne7+ {[%clk 0:00:03.4]}
56... Kf6 {[%clk 0:00:15.2]} 57. Nd5+ {[%clk 0:00:03.7]} 57... Kg6 {[%clk
0:00:15.3]} 58. Ne7+ {[%clk 0:00:03.9]} 58... Kh6 {[%clk 0:00:15.6]} 59. Nf5+
{[%clk 0:00:04.2]} 59... Kg6 {[%clk 0:00:15.4]} 60. Ne7+ {[%clk 0:00:04.6]}
1/2-1/2

[Event "Late-Titled-Tuesday-Blitz-September-12-2023"]
[Site "Chess.com"]
[Date "2023.09.12"]
[Round "2"]
[White "dcremisi"]
[Black "ChristopherYoo"]
[Result "0-1"]
[WhiteElo "2540"]
[BlackElo "3010"]
[TimeControl "180+1"]
[EndTime "14:18:20 PDT"]
[Termination "ChristopherYoo won by resignation"]

1. d4 {[%clk 0:03:00.9]} 1... Nc6 {[%clk 0:02:57.7]} 2. Nf3 {[%clk 0:02:59.7]}
2... d6 {[%clk 0:02:55.4]} 3. e4 {[%clk 0:02:59.5]} 3... Nf6 {[%clk 0:02:50.3]}
4. Nc3 {[%clk 0:02:57.8]} 4... Bg4 {[%clk 0:02:46.6]} 5. d5 {[%clk 0:02:56]}
5... Nb8 {[%clk 0:02:17.5]} 6. Be2 {[%clk 0:02:51.3]} 6... g6 {[%clk 0:02:07.8]}
7. O-O {[%clk 0:02:50.6]} 7... Bg7 {[%clk 0:02:07.8]} 8. h3 {[%clk 0:02:32.8]}
8... Bxf3 {[%clk 0:02:06.9]} 9. Bxf3 {[%clk 0:02:33.7]} 9... O-O {[%clk
0:02:05.6]} 10. Bf4 {[%clk 0:02:33.7]} 10... Nbd7 {[%clk 0:02:01.5]} 11. Qd2
{[%clk 0:02:33.5]} 11... c6 {[%clk 0:02:00.2]} 12. Rfe1 {[%clk 0:02:21.3]} 12...
Rc8 {[%clk 0:01:58.5]} 13. Bh2 {[%clk 0:02:19.2]} 13... Qa5 {[%clk 0:01:45.1]}
14. Rad1 {[%clk 0:02:08.9]} 14... Rfe8 {[%clk 0:01:31.8]} 15. a3 {[%clk
0:02:07.6]} 15... Nb6 {[%clk 0:01:14.8]} 16. dxc6 {[%clk 0:01:17.1]} 16... bxc6
{[%clk 0:01:07.7]} 17. Qd3 {[%clk 0:01:10.4]} 17... Nfd7 {[%clk 0:01:06]} 18.
Bg4 {[%clk 0:01:07.1]} 18... h5 {[%clk 0:01:04.9]} 19. Bxd7 {[%clk 0:01:05.9]}
19... Nxd7 {[%clk 0:01:05.8]} 20. Qc4 {[%clk 0:00:47.8]} 20... Nb6 {[%clk
0:00:58.9]} 21. Qd3 {[%clk 0:00:45]} 21... Rb8 {[%clk 0:00:49.6]} 22. e5 {[%clk
0:00:45]} 22... dxe5 {[%clk 0:00:49.2]} 23. Qe4 {[%clk 0:00:40.9]} 23... Qc5
{[%clk 0:00:24.6]} 24. Bxe5 {[%clk 0:00:35.4]} 24... Bxe5 {[%clk 0:00:24.6]} 25.
Qxe5 {[%clk 0:00:34.5]} 25... Qxe5 {[%clk 0:00:24.9]} 26. Rxe5 {[%clk
0:00:35.4]} 26... Nc4 {[%clk 0:00:24.8]} 27. Re4 {[%clk 0:00:35.6]} 27... Nxb2
{[%clk 0:00:21.3]} 28. Rd7 {[%clk 0:00:35.2]} 28... a5 {[%clk 0:00:17.9]} 29.
Rexe7 {[%clk 0:00:31]} 29... Rxe7 {[%clk 0:00:17.3]} 30. Rxe7 {[%clk 0:00:31.9]}
30... Nc4 {[%clk 0:00:17.3]} 31. a4 {[%clk 0:00:31]} 31... Rb2 {[%clk
0:00:17.8]} 32. Rc7 {[%clk 0:00:20.8]} 32... Rxc2 {[%clk 0:00:15.9]} 33. Ne4
{[%clk 0:00:21]} 33... Ne5 {[%clk 0:00:14.6]} 34. Ng5 {[%clk 0:00:20.8]} 34...
Rc4 {[%clk 0:00:13.2]} 35. g3 {[%clk 0:00:16.7]} 35... f6 {[%clk 0:00:10.1]} 36.
Ne6 {[%clk 0:00:14.9]} 36... Rxa4 {[%clk 0:00:10.4]} 37. f4 {[%clk 0:00:15.2]}
37... Nf3+ {[%clk 0:00:07.5]} 38. Kf2 {[%clk 0:00:15.2]} 38... Nd4 {[%clk
0:00:06.7]} 39. Nxd4 {[%clk 0:00:13.7]} 39... Rxd4 {[%clk 0:00:07.6]} 40. Rxc6
{[%clk 0:00:14.3]} 40... Kf7 {[%clk 0:00:07.8]} 41. Ra6 {[%clk 0:00:14.5]} 41...
a4 {[%clk 0:00:07.9]} 42. Ra7+ {[%clk 0:00:14.7]} 42... Ke6 {[%clk 0:00:08.1]}
43. Ke3 {[%clk 0:00:14.6]} 43... Rb4 {[%clk 0:00:08]} 44. Kf3 {[%clk 0:00:14.4]}
44... Kd5 {[%clk 0:00:07.4]} 45. Ra6 {[%clk 0:00:14]} 45... Rb3+ {[%clk
0:00:07.2]} 46. Kf2 {[%clk 0:00:14.3]} 46... a3 {[%clk 0:00:07.3]} 47. Rxf6
{[%clk 0:00:14.4]} 47... h4 {[%clk 0:00:04]} 48. gxh4 {[%clk 0:00:13.2]} 48...
Rxh3 {[%clk 0:00:04.6]} 49. Rxg6 {[%clk 0:00:13.4]} 49... a2 {[%clk 0:00:04.2]}
50. Ra6 {[%clk 0:00:13.4]} 50... Rh1 {[%clk 0:00:04.2]} 51. Rxa2 {[%clk
0:00:07.2]} 51... Rh2+ {[%clk 0:00:04.4]} 52. Kg3 {[%clk 0:00:08.1]} 52... Rxa2
{[%clk 0:00:04.6]} 53. Kg4 {[%clk 0:00:09]} 53... Ke6 {[%clk 0:00:05.1]} 54. Kg5
{[%clk 0:00:09.3]} 54... Kf7 {[%clk 0:00:06]} 55. Kf5 {[%clk 0:00:10]} 55... Ra8
{[%clk 0:00:06.3]} 56. Kg5 {[%clk 0:00:10.9]} 56... Rh8 {[%clk 0:00:06.7]} 57.
h5 {[%clk 0:00:10.7]} 57... Kg7 {[%clk 0:00:07.6]} 58. f5 {[%clk 0:00:10.8]}
58... Kf7 {[%clk 0:00:07.6]} 59. h6 {[%clk 0:00:11]} 59... Rh7 {[%clk
0:00:07.9]} 60. f6 {[%clk 0:00:10.9]} 60... Rh8 {[%clk 0:00:07.9]} 61. Kf5
{[%clk 0:00:10.1]} 61... Rxh6 {[%clk 0:00:07.3]} 62. Kg5 {[%clk 0:00:11]} 62...
Rxf6 {[%clk 0:00:07.7]} 0-1

[Event "Late-Titled-Tuesday-Blitz-September-12-2023"]
[Site "Chess.com"]
[Date "2023.09.12"]
[Round "2"]
[White "Tiqr777"]
[Black "ilya2700"]
[Result "0-1"]
[WhiteElo "2628"]
[BlackElo "2293"]
[TimeControl "180+1"]
[EndTime "14:18:22 PDT"]
[Termination "ilya2700 won by resignation"]

1. e4 {[%clk 0:03:00.4]} 1... c5 {[%clk 0:02:58.7]} 2. Nf3 {[%clk 0:03:00.6]}
2... e6 {[%clk 0:02:58.7]} 3. c4 {[%clk 0:02:59.3]} 3... Nc6 {[%clk 0:02:57.4]}
4. Nc3 {[%clk 0:02:59.7]} 4... Nf6 {[%clk 0:02:56.4]} 5. a3 {[%clk 0:02:59.2]}
5... Be7 {[%clk 0:02:43.7]} 6. d4 {[%clk 0:02:58.7]} 6... cxd4 {[%clk
0:02:43.1]} 7. Nxd4 {[%clk 0:02:59.3]} 7... Qc7 {[%clk 0:02:39.2]} 8. Be2 {[%clk
0:02:53.6]} 8... a6 {[%clk 0:02:37.3]} 9. O-O {[%clk 0:02:50]} 9... O-O {[%clk
0:02:37.2]} 10. Be3 {[%clk 0:02:39.9]} 10... d6 {[%clk 0:02:03.7]} 11. Rc1
{[%clk 0:02:38.8]} 11... Bd7 {[%clk 0:01:59]} 12. Qd2 {[%clk 0:02:21.4]} 12...
Rfd8 {[%clk 0:01:58.1]} 13. f3 {[%clk 0:02:20.8]} 13... Bf8 {[%clk 0:01:44.8]}
14. Nd5 {[%clk 0:02:17.2]} 14... exd5 {[%clk 0:01:40.2]} 15. cxd5 {[%clk
0:02:17.2]} 15... Rdc8 {[%clk 0:00:55.7]} 16. dxc6 {[%clk 0:02:12.1]} 16... bxc6
{[%clk 0:00:54.3]} 17. b4 {[%clk 0:02:09.6]} 17... Qb7 {[%clk 0:00:53.6]} 18. g4
{[%clk 0:01:59.9]} 18... a5 {[%clk 0:00:41.1]} 19. bxa5 {[%clk 0:01:48.9]} 19...
c5 {[%clk 0:00:38.6]} 20. Nf5 {[%clk 0:01:49.1]} 20... Bxf5 {[%clk 0:00:36.7]}
21. gxf5 {[%clk 0:01:48.6]} 21... d5 {[%clk 0:00:31.9]} 22. e5 {[%clk
0:00:53.4]} 22... d4 {[%clk 0:00:31.8]} 23. Bf2 {[%clk 0:00:50.3]} 23... Nd5
{[%clk 0:00:31]} 24. Bc4 {[%clk 0:00:49.6]} 24... Qd7 {[%clk 0:00:25.6]} 25.
Rce1 {[%clk 0:00:40]} 25... Nc3 {[%clk 0:00:23.4]} 26. e6 {[%clk 0:00:38.4]}
26... Qa4 {[%clk 0:00:21.6]} 27. exf7+ {[%clk 0:00:37.7]} 27... Kh8 {[%clk
0:00:21.9]} 28. Be6 {[%clk 0:00:38.4]} 28... Rd8 {[%clk 0:00:21.5]} 29. Bh4
{[%clk 0:00:22.4]} 29... Rd6 {[%clk 0:00:17]} 30. f6 {[%clk 0:00:21.9]} 30...
Qc6 {[%clk 0:00:15.6]} 31. fxg7+ {[%clk 0:00:20.7]} 31... Bxg7 {[%clk
0:00:15.9]} 32. Bg4 {[%clk 0:00:18.4]} 32... Rg6 {[%clk 0:00:15.3]} 33. Bg3
{[%clk 0:00:13.5]} 33... Nd5 {[%clk 0:00:10.9]} 34. Qd3 {[%clk 0:00:12.2]} 34...
Ne3 {[%clk 0:00:10.7]} 35. Rxe3 {[%clk 0:00:11.5]} 35... dxe3 {[%clk 0:00:11.2]}
36. Qxe3 {[%clk 0:00:12]} 36... Bd4 {[%clk 0:00:11.7]} 37. Qxd4+ {[%clk
0:00:11.7]} 37... cxd4 {[%clk 0:00:11.9]} 38. Be5+ {[%clk 0:00:12.3]} 38... Rg7
{[%clk 0:00:12.6]} 39. Bxd4 {[%clk 0:00:12.6]} 39... Rf8 {[%clk 0:00:09]} 40.
Re1 {[%clk 0:00:08.1]} 40... Qd5 {[%clk 0:00:06.1]} 41. Bf6 {[%clk 0:00:07.2]}
41... Qxf7 {[%clk 0:00:05.8]} 42. Ba1 {[%clk 0:00:06.2]} 42... h6 {[%clk
0:00:04.5]} 43. a6 {[%clk 0:00:06]} 43... Kh7 {[%clk 0:00:05]} 44. Bxg7 {[%clk
0:00:01.8]} 44... Qxg7 {[%clk 0:00:04.9]} 45. Kh1 {[%clk 0:00:02.5]} 45... Qa7
{[%clk 0:00:05.3]} 46. Rg1 {[%clk 0:00:03.2]} 46... Qxa6 {[%clk 0:00:05.3]} 47.
Bh5 {[%clk 0:00:03.9]} 47... Rg8 {[%clk 0:00:05]} 48. Rxg8 {[%clk 0:00:03.1]}
48... Kxg8 {[%clk 0:00:05]} 49. Bg4 {[%clk 0:00:04]} 49... Kg7 {[%clk
0:00:05.5]} 50. Kg2 {[%clk 0:00:04.4]} 50... Qxa3 {[%clk 0:00:06.1]} 51. Kg3
{[%clk 0:00:05.1]} 51... Qb2 {[%clk 0:00:07]} 52. h4 {[%clk 0:00:05.7]} 52...
Qe5+ {[%clk 0:00:07.4]} 53. f4 {[%clk 0:00:05.9]} 53... Qe3+ {[%clk 0:00:08]}
54. Bf3 {[%clk 0:00:06.6]} 54... h5 {[%clk 0:00:08]} 55. f5 {[%clk 0:00:06.4]}
55... Kf6 {[%clk 0:00:07.7]} 56. Kg2 {[%clk 0:00:07.1]} 56... Kxf5 {[%clk
0:00:07.3]} 57. Bxh5 {[%clk 0:00:07.8]} 57... Kf4 {[%clk 0:00:07.8]} 58. Bg4
{[%clk 0:00:08]} 58... Qg3+ {[%clk 0:00:07.7]} 0-1

[Event "Late-Titled-Tuesday-Blitz-September-12-2023"]
[Site "Chess.com"]
[Date "2023.09.12"]
[Round "2"]
[White "dennisodessa"]
[Black "imdarealist"]
[Result "1-0"]
[WhiteElo "2527"]
[BlackElo "2302"]
[TimeControl "180+1"]
[EndTime "14:18:25 PDT"]
[Termination "dennisodessa won on time"]

1. d4 {[%clk 0:02:56.7]} 1... d5 {[%clk 0:02:57.4]} 2. c4 {[%clk 0:02:54.6]}
2... e6 {[%clk 0:02:57.2]} 3. Nc3 {[%clk 0:02:54.8]} 3... Nf6 {[%clk 0:02:56]}
4. cxd5 {[%clk 0:02:53]} 4... exd5 {[%clk 0:02:56.7]} 5. Bg5 {[%clk 0:02:52.7]}
5... c6 {[%clk 0:02:57.4]} 6. Qc2 {[%clk 0:02:51.5]} 6... Qb6 {[%clk 0:02:58.2]}
7. Bxf6 {[%clk 0:02:48.8]} 7... gxf6 {[%clk 0:02:56.3]} 8. e3 {[%clk 0:02:49.7]}
8... Bf5 {[%clk 0:02:30.7]} 9. Qxf5 {[%clk 0:02:25.1]} 9... Qxb2 {[%clk
0:02:29.1]} 10. Qc8+ {[%clk 0:02:19.4]} 10... Ke7 {[%clk 0:02:22.6]} 11. Rb1
{[%clk 0:01:54.6]} 11... Qxc3+ {[%clk 0:02:19.4]} 12. Kd1 {[%clk 0:01:54.5]}
12... Bg7 {[%clk 0:01:34.5]} 13. Qxb7+ {[%clk 0:01:52.8]} 13... Nd7 {[%clk
0:01:33.8]} 14. Ne2 {[%clk 0:01:48.1]} 14... Qd3+ {[%clk 0:01:16.7]} 15. Kc1
{[%clk 0:01:45.9]} 15... Rhb8 {[%clk 0:01:12.4]} 16. Rb3 {[%clk 0:01:46]} 16...
Qc4+ {[%clk 0:00:50.5]} 17. Nc3 {[%clk 0:01:44.7]} 17... Rxb7 {[%clk 0:00:23.3]}
18. Bxc4 {[%clk 0:01:43.7]} 18... Rab8 {[%clk 0:00:24.2]} 19. Rxb7 {[%clk
0:01:40.5]} 19... Rxb7 {[%clk 0:00:25.1]} 20. Bb3 {[%clk 0:01:41.1]} 20... f5
{[%clk 0:00:23]} 21. Ne2 {[%clk 0:01:37.4]} 21... Bh6 {[%clk 0:00:17.8]} 22. Kc2
{[%clk 0:01:37.1]} 22... Kd6 {[%clk 0:00:18.5]} 23. Rd1 {[%clk 0:01:34.3]} 23...
Nf6 {[%clk 0:00:18.3]} 24. Ng3 {[%clk 0:01:30.9]} 24... Ke6 {[%clk 0:00:15.8]}
25. f4 {[%clk 0:01:15.8]} 25... Ne4 {[%clk 0:00:12.8]} 26. Rc1 {[%clk
0:01:05.8]} 26... Nxg3 {[%clk 0:00:09.4]} 27. hxg3 {[%clk 0:01:06.7]} 27... Bf8
{[%clk 0:00:09.2]} 28. Kd3 {[%clk 0:01:06.8]} 28... Rc7 {[%clk 0:00:07.5]} 29.
Ba4 {[%clk 0:01:05.5]} 29... c5 {[%clk 0:00:07.9]} 30. dxc5 {[%clk 0:01:02.6]}
30... Rxc5 {[%clk 0:00:07.9]} 31. Rh1 {[%clk 0:01:01.8]} 31... Ra5 {[%clk
0:00:06.8]} 32. Bb3 {[%clk 0:01:02.7]} 32... h6 {[%clk 0:00:06.1]} 33. Rh4
{[%clk 0:00:57.4]} 33... Rc5 {[%clk 0:00:02.6]} 34. g4 {[%clk 0:00:57.9]} 34...
fxg4 {[%clk 0:00:03.3]} 35. Rxg4 {[%clk 0:00:58.8]} 35... Rc8 {[%clk 0:00:03.4]}
36. Rg8 {[%clk 0:00:58.2]} 36... Kf6 {[%clk 0:00:02.4]} 37. g4 {[%clk
0:00:58.6]} 37... Ke6 {[%clk 0:00:02.5]} 38. Rh8 {[%clk 0:00:55.4]} 38... Kd6
{[%clk 0:00:03]} 39. e4 {[%clk 0:00:50.5]} 39... dxe4+ {[%clk 0:00:02.1]} 40.
Kxe4 {[%clk 0:00:51.4]} 40... Ke7 {[%clk 0:00:02.6]} 41. Kf5 {[%clk 0:00:51.6]}
41... Rc5+ {[%clk 0:00:02.6]} 42. Ke4 {[%clk 0:00:51.6]} 42... Bg7 {[%clk
0:00:03]} 43. Ra8 {[%clk 0:00:52.5]} 43... Rc7 {[%clk 0:00:02.8]} 44. Kd5 {[%clk
0:00:48.5]} 44... Rd7+ {[%clk 0:00:03.5]} 45. Kc6 {[%clk 0:00:48.7]} 45... Rd6+
{[%clk 0:00:04]} 46. Kb7 {[%clk 0:00:49.3]} 46... Rd7+ {[%clk 0:00:04.8]} 47.
Ka6 {[%clk 0:00:50]} 47... Rd4 {[%clk 0:00:04]} 48. Rxa7+ {[%clk 0:00:49.2]}
48... Ke8 {[%clk 0:00:04.8]} 49. Rxf7 {[%clk 0:00:50.1]} 49... Bf8 {[%clk
0:00:03.2]} 50. g5 {[%clk 0:00:45.3]} 50... hxg5 {[%clk 0:00:03.6]} 51. fxg5
{[%clk 0:00:46.2]} 51... Rg4 {[%clk 0:00:04.3]} 52. Rf5 {[%clk 0:00:40.7]} 52...
Be7 {[%clk 0:00:05.1]} 53. Bf7+ {[%clk 0:00:41.5]} 53... Kf8 {[%clk 0:00:04.9]}
54. g6 {[%clk 0:00:42.4]} 54... Kg7 {[%clk 0:00:05.5]} 55. Rf2 {[%clk
0:00:35.5]} 55... Bf6 {[%clk 0:00:05.9]} 56. Kb5 {[%clk 0:00:33.9]} 56... Rb4+
{[%clk 0:00:05.9]} 57. Kxb4 {[%clk 0:00:33.2]} 1-0

[Event "Late-Titled-Tuesday-Blitz-September-12-2023"]
[Site "Chess.com"]
[Date "2023.09.12"]
[Round "2"]
[White "vugarrasulov"]
[Black "arminmusovic"]
[Result "1-0"]
[WhiteElo "2953"]
[BlackElo "2538"]
[TimeControl "180+1"]
[EndTime "14:18:30 PDT"]
[Termination "vugarrasulov won by checkmate"]

1. d4 {[%clk 0:03:00.9]} 1... d5 {[%clk 0:02:54.7]} 2. c4 {[%clk 0:03:01.3]}
2... c5 {[%clk 0:02:55.6]} 3. cxd5 {[%clk 0:03:00.3]} 3... Nf6 {[%clk
0:02:55.3]} 4. Nf3 {[%clk 0:02:53.3]} 4... cxd4 {[%clk 0:02:54.5]} 5. Qa4+
{[%clk 0:02:48.8]} 5... Qd7 {[%clk 0:02:54.9]} 6. Qxd4 {[%clk 0:02:48]} 6...
Qxd5 {[%clk 0:02:55.4]} 7. Nc3 {[%clk 0:02:47.6]} 7... Qxd4 {[%clk 0:02:56]} 8.
Nxd4 {[%clk 0:02:48.5]} 8... a6 {[%clk 0:02:56.9]} 9. Bf4 {[%clk 0:02:44.2]}
9... Nbd7 {[%clk 0:02:56.4]} 10. Bg3 {[%clk 0:02:37.8]} 10... e5 {[%clk
0:02:56.6]} 11. Nf3 {[%clk 0:02:35]} 11... e4 {[%clk 0:02:57.1]} 12. Nd4 {[%clk
0:02:30.3]} 12... e3 {[%clk 0:02:52.5]} 13. fxe3 {[%clk 0:02:30.1]} 13... Bb4
{[%clk 0:02:50.2]} 14. O-O-O {[%clk 0:02:16.1]} 14... Bxc3 {[%clk 0:02:46.6]}
15. bxc3 {[%clk 0:02:17]} 15... Nc5 {[%clk 0:01:34.2]} 16. Bh4 {[%clk
0:01:48.5]} 16... Nce4 {[%clk 0:01:17.4]} 17. Bxf6 {[%clk 0:01:48.3]} 17... gxf6
{[%clk 0:01:17.4]} 18. Rg1 {[%clk 0:01:37.5]} 18... Nxc3 {[%clk 0:01:12.5]} 19.
Rd2 {[%clk 0:01:38.1]} 19... Ne4 {[%clk 0:01:01.5]} 20. Rc2 {[%clk 0:01:35.4]}
20... Bd7 {[%clk 0:00:50]} 21. g3 {[%clk 0:01:34.7]} 21... Ke7 {[%clk
0:00:48.9]} 22. Bg2 {[%clk 0:01:34.6]} 22... Nd6 {[%clk 0:00:49.4]} 23. Kd2
{[%clk 0:01:15.5]} 23... Rac8 {[%clk 0:00:45]} 24. Rgc1 {[%clk 0:01:15.9]} 24...
Rxc2+ {[%clk 0:00:45]} 25. Rxc2 {[%clk 0:01:16.8]} 25... Rc8 {[%clk 0:00:43]}
26. Rxc8 {[%clk 0:01:15.6]} 26... Bxc8 {[%clk 0:00:43.9]} 27. Bd5 {[%clk
0:01:10.7]} 27... Ne8 {[%clk 0:00:41.6]} 28. e4 {[%clk 0:01:08.1]} 28... Nd6
{[%clk 0:00:38.5]} 29. Ke3 {[%clk 0:01:07.4]} 29... Bd7 {[%clk 0:00:33.5]} 30.
Kf4 {[%clk 0:01:03]} 30... b5 {[%clk 0:00:24]} 31. e5 {[%clk 0:01:02.4]} 31...
Ne8 {[%clk 0:00:21]} 32. Be4 {[%clk 0:00:55.6]} 32... h6 {[%clk 0:00:19.9]} 33.
Bf5 {[%clk 0:00:51.7]} 33... fxe5+ {[%clk 0:00:18.8]} 34. Kxe5 {[%clk
0:00:52.6]} 34... f6+ {[%clk 0:00:17.7]} 35. Kd5 {[%clk 0:00:45.6]} 35... Ng7
{[%clk 0:00:18]} 36. Bd3 {[%clk 0:00:30.4]} 36... Ne8 {[%clk 0:00:06.4]} 37. a3
{[%clk 0:00:27.1]} 37... Nc7+ {[%clk 0:00:05.8]} 38. Kc5 {[%clk 0:00:27]} 38...
Ne6+ {[%clk 0:00:03.6]} 39. Nxe6 {[%clk 0:00:27.4]} 39... Kxe6 {[%clk
0:00:04.3]} 40. Kb6 {[%clk 0:00:25.9]} 40... Bc8 {[%clk 0:00:04.9]} 41. Kc7
{[%clk 0:00:23.5]} 41... Bd7 {[%clk 0:00:05.2]} 42. Kb6 {[%clk 0:00:24]} 42...
Bc8 {[%clk 0:00:05.4]} 43. Kc5 {[%clk 0:00:21.5]} 43... Ke5 {[%clk 0:00:05.5]}
44. e3 {[%clk 0:00:21.9]} 44... Bd7 {[%clk 0:00:05.2]} 45. h4 {[%clk 0:00:21.7]}
45... Bc8 {[%clk 0:00:05.3]} 46. Bg6 {[%clk 0:00:17.5]} 46... f5 {[%clk
0:00:05.2]} 47. Kb6 {[%clk 0:00:13.6]} 47... Ke4 {[%clk 0:00:05.7]} 48. g4
{[%clk 0:00:14.2]} 48... Ke5 {[%clk 0:00:05.3]} 49. gxf5 {[%clk 0:00:14.2]}
49... Kf6 {[%clk 0:00:04.2]} 50. e4 {[%clk 0:00:13]} 50... Ke5 {[%clk
0:00:04.5]} 51. h5 {[%clk 0:00:13.7]} 51... Kf6 {[%clk 0:00:03.6]} 52. Kc7
{[%clk 0:00:13.8]} 52... Ke5 {[%clk 0:00:01.4]} 53. Kxc8 {[%clk 0:00:14]} 53...
a5 {[%clk 0:00:02.3]} 54. Kd7 {[%clk 0:00:12]} 54... b4 {[%clk 0:00:02.5]} 55.
axb4 {[%clk 0:00:12.7]} 55... axb4 {[%clk 0:00:03.4]} 56. Bf7 {[%clk 0:00:12.1]}
56... Kxe4 {[%clk 0:00:03]} 57. f6 {[%clk 0:00:12.1]} 57... Kf5 {[%clk
0:00:02.9]} 58. Ke7 {[%clk 0:00:12.5]} 58... Kg5 {[%clk 0:00:03.2]} 59. Bg6
{[%clk 0:00:13.4]} 59... b3 {[%clk 0:00:03.3]} 60. f7 {[%clk 0:00:14.3]} 60...
b2 {[%clk 0:00:04.2]} 61. f8=Q {[%clk 0:00:14.7]} 61... Kh4 {[%clk 0:00:05.1]}
62. Qf4+ {[%clk 0:00:14.7]} 62... Kh3 {[%clk 0:00:05.3]} 63. Qf3+ {[%clk
0:00:14.5]} 63... Kh2 {[%clk 0:00:06.2]} 64. Qf2+ {[%clk 0:00:14.8]} 64... Kh3
{[%clk 0:00:06.4]} 65. Bf5# {[%clk 0:00:15.2]} 1-0